fUST/lending_fUST_20241203
["ID","MTS","AMOUNT","RATE_DAILY","PERIOD"]
[343967292,1733160643763,-500.0,0.00028218,7]
[343967293,1733160643775,-500.0,0.00028218,7]
[343967294,1733160643784,-500.0,0.00028218,7]
[343967295,1733160643793,-500.0,0.00028218,7]
[343967296,1733160643803,-500.0,0.00028218,7]
[343967297,1733160643812,-500.0,0.00028218,7]
[343967298,1733160643822,-500.0,0.00028218,7]
[343967299,1733160643832,-500.0,0.00028218,7]
[343967300,1733160643842,-500.0,0.00028218,7]
[343967301,1733160643852,-500.0,0.00028218,7]
[343967302,1733160643862,-555.17224887,0.00028218,7]
[343967303,1733160643871,-500.0,0.00028218,7]
[343967304,1733160643880,-500.0,0.00028218,7]
[343967305,1733160643890,-500.0,0.00028218,7]
[343967306,1733160643900,-500.0,0.00028218,7]
[343967307,1733160643914,-248.12425141,0.00028218,7]
[343967308,1733160643928,-500.0,0.00028219,7]
[343967309,1733160643942,-500.0,0.00028219,7]
[343967310,1733160643956,-500.0,0.00028219,7]
[343967311,1733160643969,-561.18534592,0.00028219,7]
[343967312,1733160643980,-500.0,0.00028219,7]
[343967313,1733160643993,-525.01464265,0.00028219,7]
[343967314,1733160644006,-3807.64,0.00028219,7]
[343967315,1733160644021,-500.0,0.00028219,7]
[343967316,1733160644035,-1304.11,0.00028219,7]
[343967317,1733160644047,-500.0,0.00028219,7]
[343967318,1733160644060,-500.0,0.00028219,7]
[343967319,1733160644073,-606.75,0.00028219,7]
[343967320,1733160644086,-500.0,0.00028219,7]
[343967321,1733160644100,-374.02868751,0.00028219,7]
[343967322,1733160644116,-500.0,0.00028219,7]
[343967323,1733160644127,-500.0,0.00028219,7]
[343967324,1733160644139,-500.0,0.00028219,7]
[343967325,1733160644154,-2002.79,0.00028219,7]
[343967326,1733160644166,-500.0,0.00028219,7]
[343967328,1733160644179,-500.0,0.00028219,7]
[343967330,1733160644190,-500.0,0.00028219,7]
[343967332,1733160644203,-500.0,0.00028219,7]
[343967333,1733160644213,-500.0,0.00028219,7]
[343967334,1733160644222,-500.0,0.00028219,7]
[343967335,1733160644234,-500.0,0.00028219,7]
[343967336,1733160644245,-500.0,0.00028492,7]
[343967337,1733160644257,-503.18071157,0.00028492,7]
[343967338,1733160644269,-500.0,0.00028492,7]
[343967339,1733160644283,-500.0,0.00028492,2]
[343967340,1733160644296,-552.55,0.00028492,7]
[343967341,1733160644309,-500.0,0.00028492,7]
[343967342,1733160644322,-500.0,0.00028492,7]
[343967343,1733160644335,-500.0,0.00028492,7]
[343967344,1733160644348,-471.37464738,0.00028492,7]
[343967345,1733160644361,-500.0,0.00028492,7]
[343967346,1733160644372,-396.59720407,0.00028492,7]
[343967347,1733160644382,-500.0,0.00028492,7]
[343967348,1733160644393,-298.61,0.00028492,7]
[343967349,1733160644404,-500.0,0.00028492,7]
[343967350,1733160644417,-500.0,0.00028492,7]
[343967351,1733160644431,-500.0,0.00028492,7]
[343967352,1733160644445,-500.0,0.00028492,7]
[343967353,1733160644456,-500.0,0.00028493,7]
[343967354,1733160644467,-500.0,0.00028493,7]
[343967355,1733160644478,-350.88441053,0.00028493,7]
[343967356,1733160644490,-465.84965076,0.00028493,7]
[343967357,1733160644502,-3807.64,0.00028493,7]
[343967358,1733160644515,-500.0,0.00028493,7]
[343967359,1733160644529,-1304.11,0.00028493,7]
[343967360,1733160644540,-500.0,0.00028493,7]
[343967361,1733160644550,-500.0,0.00028493,7]
[343967362,1733160644562,-500.0,0.00028493,7]
[343967363,1733160644574,-500.0,0.00028493,7]
[343967364,1733160644585,-500.0,0.00028493,7]
[343967365,1733160644596,-2002.79,0.00028493,7]
[343967366,1733160644606,-500.0,0.00028493,7]
[343967367,1733160644618,-500.0,0.00028493,7]
[343967368,1733160644628,-500.0,0.00028493,7]
[343967369,1733160644639,-500.0,0.00028493,7]
[343967370,1733160644651,-500.0,0.00028493,7]
[343967371,1733160644663,-1248.80323228,0.0002851,2]
[343967372,1733160644674,-1152.0,0.000286,2]
[343967373,1733160644685,-1000.0,0.0002861,5]
[343967374,1733160644696,-1000.0,0.0002861,5]
[343967375,1733160644706,-2806.55727368,0.00028706,2]
[343967376,1733160644717,-1248.8032322,0.00028718,2]
[343967377,1733160644728,-262.54796888,0.00028766,7]
[343967378,1733160644739,-394.7,0.00028766,7]
[343967379,1733160644750,-500.0,0.00028766,7]
[343967380,1733160644761,-500.0,0.00028766,7]
[343967381,1733160644772,-500.0,0.00028766,7]
[343967382,1733160644783,-500.0,0.00028766,7]
[343967383,1733160644794,-500.0,0.00028766,7]
[343967384,1733160644804,-1169.27083333,0.00028767,7]
[343967385,1733160644815,-500.0,0.00028767,7]
[343967386,1733160644826,-500.0,0.00028767,7]
[343967387,1733160644837,-3807.64,0.00028767,7]
[343967388,1733160644848,-500.0,0.00028767,7]
[343967389,1733160644858,-1304.11,0.00028767,7]
[343967390,1733160644869,-500.0,0.00028767,7]
[343967391,1733160644880,-192.24830576,0.00028767,7]
[343967392,1733160644890,-500.0,0.00028767,7]
[343967393,1733160644901,-500.0,0.00028767,7]
[343967394,1733160644912,-500.0,0.00028767,7]
[343967395,1733160644922,-2002.79,0.00028767,7]
[343967396,1733160644933,-500.0,0.00028767,7]
[343967397,1733160644944,-500.0,0.00028767,7]
[343967398,1733160644954,-500.0,0.00028767,7]
[343967399,1733160644965,-500.0,0.00028767,7]
[343967400,1733160645071,-500.0,0.00028767,7]
[343967401,1733160645081,-184.48602,0.00028776,2]
[343967402,1733160645091,-172.183979,0.00028776,2]
[343967403,1733160645100,-185.964831,0.00028776,2]
[343967404,1733160645109,-387.694032,0.00028776,2]
[343967405,1733160645119,-184.369875,0.00028776,2]
[343967406,1733160645128,-172.183979,0.00028776,2]
[343967407,1733160645137,-173.839996,0.00028776,2]
[343967408,1733160645147,-153.38,0.000288,31]
[343967409,1733160645156,-153.38,0.000288,31]
[343967410,1733160645166,-153.38,0.000288,31]
[343967411,1733160645175,-153.38,0.000288,31]
[343967412,1733160645185,-153.38,0.000288,31]
[343967413,1733160645194,-153.38,0.000288,31]
[343967414,1733160645203,-153.38,0.000288,31]
[343967415,1733160645212,-153.38,0.000288,31]
[343967416,1733160645222,-153.38,0.000288,31]
[343967417,1733160645231,-153.38,0.000288,31]
[343967418,1733160645240,-153.38,0.000288,31]
[343967419,1733160645250,-1248.8032322,0.00028927,2]
[343967420,1733160645260,-784.63234294,0.0002899,2]
[343967421,1733160645270,-231.0,0.00028997,2]
[343967422,1733160645281,-500.0,0.00029011,5]
[343967423,1733160645291,-500.0,0.0002904,7]
[343967424,1733160645300,-500.0,0.0002904,7]
[343967425,1733160645310,-500.0,0.0002904,7]
[343967426,1733160645320,-500.0,0.0002904,7]
[343967427,1733160645330,-500.0,0.0002904,7]
[343967428,1733160645339,-500.0,0.00029041,7]
[343967429,1733160645348,-500.0,0.00029041,7]
[343967430,1733160645358,-3807.64,0.00029041,7]
[343967431,1733160645368,-500.0,0.00029041,7]
[343967432,1733160645377,-1304.11,0.00029041,7]
[343967433,1733160645387,-500.0,0.00029041,7]
[343967434,1733160645397,-500.0,0.00029041,7]
[343967435,1733160645407,-500.0,0.00029041,7]
[343967436,1733160645417,-500.0,0.00029041,7]
[343967437,1733160645427,-2002.79,0.00029041,7]
[343967438,1733160645436,-500.0,0.00029041,7]
[343967439,1733160645446,-500.0,0.00029041,7]
[343967440,1733160645455,-514.52,0.00029041,7]
[343967441,1733160645465,-500.0,0.00029041,7]
[343967442,1733160645475,-177.32480934,0.00029041,7]
[343967443,1733160645485,-1248.8032322,0.00029135,2]
[343967444,1733160645495,-387.694032,0.00029136,2]
[343967445,1733160645505,-155.00090696,0.00029194,2]
[343967446,1733160645515,-153.38,0.000292,31]
[343967447,1733160645528,-153.38,0.000292,31]
[343967448,1733160645538,-153.38,0.000292,31]
[343967449,1733160645548,-153.38,0.000292,31]
[343967450,1733160645558,-153.38,0.000292,31]
[343967451,1733160645568,-153.38,0.000292,31]
[343967452,1733160645578,-153.38,0.000292,31]
[343967453,1733160645588,-153.38,0.000292,31]
[343967454,1733160645599,-153.38,0.000292,31]
[343967455,1733160645609,-153.38,0.000292,31]
[343967456,1733160645619,-153.38,0.000292,31]
[343967457,1733160645628,-153.38,0.000292,31]
[343967458,1733160645638,-153.38,0.000292,31]
[343967459,1733160645648,-153.38,0.000292,31]
[343967460,1733160645659,-153.38,0.000292,31]
[343967461,1733160645668,-153.38,0.000292,31]
[343967462,1733160645679,-153.38,0.000292,31]
[343967463,1733160645688,-153.38,0.000292,31]
[343967464,1733160645699,-153.38,0.000292,31]
[343967465,1733160645709,-153.38,0.000292,31]
[343967466,1733160645719,-153.38,0.000292,31]
[343967467,1733160645733,-153.38,0.000292,31]
[343967468,1733160645744,-1227.89539967,0.00029215,2]
[343967469,1733160645754,-185.964831,0.00029255,2]
[343967470,1733160645764,-10471.61251642,0.00029286,2]
[343967471,1733160645777,-500.0,0.00029314,7]
[343967472,1733160645786,-500.0,0.00029314,7]
[343967473,1733160645795,-500.0,0.00029314,7]
[343967474,1733160645805,-500.0,0.00029314,7]
[343967475,1733160645815,-500.0,0.00029315,7]
[343967476,1733160645824,-500.0,0.00029315,7]
[343967477,1733160645835,-3807.64,0.00029315,7]
[343967478,1733160645844,-500.0,0.00029315,7]
[343967479,1733160645854,-1304.11,0.00029315,7]
[343967480,1733160645863,-500.0,0.00029315,7]
[343967481,1733160645873,-500.0,0.00029315,7]
[343967482,1733160645883,-500.0,0.00029315,7]
[343967483,1733160645893,-500.0,0.00029315,7]
[343967484,1733160645902,-2002.79,0.00029315,7]
[343967485,1733160645912,-500.0,0.00029315,7]
[343967486,1733160645923,-500.0,0.00029315,7]
[343967487,1733160645932,-500.0,0.00029315,7]
[343967488,1733160645941,-1248.8032322,0.00029343,2]
[343967489,1733160645950,-10471.61251642,0.00029403,2]
[343967490,1733160645960,-698.1,0.00029487,15]
[343967491,1733160645970,-387.694032,0.00029495,2]
[343967492,1733160645980,-10449.41339236,0.000295,14]
[343967493,1733160645990,-2806.55727368,0.00029545,2]
[343967494,1733160645999,-1248.8032322,0.00029552,2]
[343967495,1733160646009,-1000.0,0.00029559,5]
[343967496,1733160646019,-515.94728598,0.00029588,7]
[343967497,1733160646032,-500.0,0.00029588,7]
[343967498,1733160646042,-500.0,0.00029588,7]
[343967499,1733160646051,-228.60545249,0.00029588,7]
[343967500,1733160646062,-304.4,0.00029589,7]
[343967501,1733160646072,-500.0,0.00029589,7]
[343967502,1733160646081,-3807.64,0.00029589,7]
[343967503,1733160646091,-500.0,0.00029589,7]
[343967504,1733160646101,-1304.11,0.00029589,7]
[343967505,1733160646113,-502.12199519,0.00029589,7]
[343967506,1733160646124,-500.0,0.00029589,7]
[343967508,1733160646134,-500.0,0.00029589,7]
[343967510,1733160646144,-500.0,0.00029589,7]
[343967511,1733160646153,-2002.79,0.00029589,7]
[343967512,1733160646163,-500.0,0.00029589,7]
[343967513,1733160646172,-500.0,0.00029589,7]
[343967514,1733160646181,-500.0,0.00029589,7]
[343967515,1733160646191,-10471.61251642,0.00029597,2]
[343967516,1733160646201,-153.38,0.000296,31]
[343967517,1733160646211,-153.38,0.000296,31]
[343967519,1733160646220,-153.38,0.000296,31]
[343967520,1733160646230,-153.38,0.000296,31]
[343967521,1733160646239,-153.38,0.000296,31]
[343967523,1733160646250,-153.38,0.000296,31]
[343967525,1733160646259,-153.38,0.000296,31]
[343967527,1733160646269,-153.38,0.000296,31]
[343967528,1733160646284,-153.38,0.000296,31]
[343967529,1733160646293,-153.38,0.000296,31]
[343967530,1733160646302,-153.38,0.000296,31]
[343967532,1733160646313,-153.38,0.000296,31]
[343967534,1733160646322,-153.38,0.000296,31]
[343967535,1733160646332,-153.38,0.000296,31]
[343967536,1733160646342,-153.38,0.000296,31]
[343967537,1733160646352,-153.38,0.000296,31]
[343967538,1733160646362,-153.38,0.000296,31]
[343967539,1733160646371,-153.38,0.000296,31]
[343967540,1733160646381,-153.38,0.000296,31]
[343967541,1733160646391,-153.38,0.000296,31]
[343967542,1733160646400,-153.38,0.000296,31]
[343967544,1733160646409,-153.38,0.000296,31]
[343967546,1733160646419,-1400.1007628,0.00029612,5]
[343967547,1733160646428,-1500.0,0.00029612,5]
[343967549,1733160646439,-153.0,0.00029644,30]
[343967550,1733160646448,-213.0944069,0.00029644,30]
[343967551,1733160646458,-213.0944069,0.00029644,30]
[343967552,1733160646468,-153.0,0.00029644,30]
[343967553,1733160646477,-211.8747653,0.00029644,30]
[343967554,1733160646487,-425.98777,0.00029644,30]
[343967555,1733160646497,-153.0,0.00029644,30]
[343967556,1733160646507,-153.0,0.00029644,30]
[343967558,1733160646518,-153.0,0.00029644,30]
[343967560,1733160646534,-153.0,0.00029671,30]
[343967562,1733160646543,-153.0,0.00029671,30]
[343967563,1733160646553,-153.0,0.00029671,30]
[343967564,1733160646563,-185.964831,0.00029735,2]
[343967565,1733160646573,-1248.8032322,0.0002976,2]
[343967566,1733160646584,-1152.0,0.00029831,2]
[343967567,1733160646594,-387.694032,0.00029855,2]
[343967568,1733160646604,-500.0,0.00029862,7]
[343967570,1733160646615,-500.0,0.00029862,7]
[343967572,1733160646624,-500.0,0.00029863,7]
[343967574,1733160646633,-3807.64,0.00029863,7]
[343967576,1733160646645,-500.0,0.00029863,7]
[343967577,1733160646656,-1304.11,0.00029863,7]
[343967578,1733160646665,-500.0,0.00029863,7]
[343967579,1733160646675,-500.0,0.00029863,7]
[343967580,1733160646686,-500.0,0.00029863,7]
[343967581,1733160646696,-2002.79,0.00029863,7]
[343967582,1733160646706,-500.0,0.00029863,7]
[343967583,1733160646716,-490.00000003,0.00029863,7]
[343967584,1733160646726,-500.0,0.00029863,7]
[343967585,1733160646738,-1248.8032322,0.00029968,2]
[343967586,1733160646748,-251.346,0.0003,2]
[343967587,1733160646758,-15867.596379,0.0003,2]
[343967588,1733160646768,-493816.068697,0.0003,2]
[343967589,1733160646784,-153.38,0.0003,31]
[343967590,1733160646794,-153.38,0.0003,31]
[343967592,1733160646804,-153.38,0.0003,31]
[343967594,1733160646813,-153.38,0.0003,31]
[343967595,1733160646822,-153.38,0.0003,31]
[343967596,1733160646831,-153.38,0.0003,31]
[343967597,1733160646841,-153.38,0.0003,31]
[343967598,1733160646851,-153.38,0.0003,31]
[343967599,1733160646861,-153.38,0.0003,31]
[343967600,1733160646871,-153.38,0.0003,31]
[343967601,1733160646880,-153.38,0.0003,31]
[343967602,1733160646891,-153.38,0.0003,31]
[343967603,1733160646901,-153.38,0.0003,31]
[343967604,1733160646911,-153.38,0.0003,31]
[343967605,1733160646921,-153.38,0.0003,31]
[343967606,1733160646930,-153.38,0.0003,31]
[343967607,1733160646940,-153.38,0.0003,31]
[343967608,1733160646950,-153.38,0.0003,31]
[343967609,1733160646959,-153.38,0.0003,31]
[343967610,1733160646968,-153.38,0.0003,31]
[343967611,1733160646978,-153.38,0.0003,31]
[343967612,1733160646987,-153.38,0.0003,31]
[343967613,1733160646996,-800.48228658,0.0003,2]
[343967614,1733160647006,-12487.12432266,0.0003,2]
[343967615,1733160647016,-1500.0,0.0003,2]
[343967616,1733160647028,-1024.54898977,0.0003,7]
[343967617,1733160647038,-167.91287049,0.0003,2]
[343967618,1733160647047,-412.73792482,0.0003,10]
[343967619,1733160647056,-5570.85757403,0.0003,3]
[343967620,1733160647066,-222.0,0.0003,2]
[343967621,1733160647075,-10471.61251642,0.00030055,2]
[343967622,1733160647085,-500.0,0.00030135,2]
[343967623,1733160647094,-3807.64,0.00030136,7]
[343967624,1733160647103,-420.02,0.00030136,7]
[343967625,1733160647113,-500.0,0.00030136,7]
[343967626,1733160647123,-1304.11,0.00030136,7]
[343967627,1733160647132,-500.0,0.00030136,7]
[343967628,1733160647142,-500.0,0.00030136,7]
[343967629,1733160647152,-500.0,0.00030136,7]
[343967630,1733160647241,-500.0,0.00030136,7]
[343967631,1733160647251,-151.0,0.00030136,7]
[343967632,1733160647261,-2002.79,0.00030136,7]
[343967633,1733160647270,-500.0,0.00030136,7]
[343967634,1733160647282,-500.0,0.00030136,7]
[343967635,1733160647292,-151.0,0.00030136,7]
[343967636,1733160647302,-197.042322,0.00030137,120]
[343967637,1733160647311,-10471.61251643,0.00030167,2]
[343967638,1733160647321,-1248.8032322,0.00030177,2]
[343967639,1733160647331,-184.48602,0.00030215,2]
[343967640,1733160647341,-184.369875,0.00030215,2]
[343967641,1733160647350,-173.839996,0.00030215,2]
[343967642,1733160647360,-185.964831,0.00030215,2]
[343967643,1733160647369,-387.694032,0.00030215,2]
[343967644,1733160647378,-980.83052185,0.00030284,3]
[343967645,1733160647387,-17568.5,0.000303,10]
[343967646,1733160647396,-666.0,0.00030371,2]
[343967647,1733160647406,-6666.0,0.00030371,2]
[343967648,1733160647415,-1248.8032322,0.00030385,2]
[343967649,1733160647424,-2806.55727368,0.00030385,2]
[343967650,1733160647433,-2000.0,0.000304,3]
[343967651,1733160647442,-187.0,0.000304,3]
[343967652,1733160647451,-24414.4570598,0.000304,7]
[343967653,1733160647461,-1057.7,0.000304,2]
[343967654,1733160647471,-153.38,0.000304,31]
[343967655,1733160647481,-153.38,0.000304,31]
[343967656,1733160647490,-153.38,0.000304,31]
[343967657,1733160647500,-153.38,0.000304,31]
[343967658,1733160647510,-153.38,0.000304,31]
[343967659,1733160647520,-153.38,0.000304,31]
[343967660,1733160647531,-153.38,0.000304,31]
[343967661,1733160647540,-153.38,0.000304,31]
[343967662,1733160647550,-153.38,0.000304,31]
[343967663,1733160647560,-153.38,0.000304,31]
[343967664,1733160647570,-153.38,0.000304,31]
[343967665,1733160647580,-153.38,0.000304,31]
[343967666,1733160647590,-153.38,0.000304,31]
[343967667,1733160647599,-153.38,0.000304,31]
[343967668,1733160647609,-153.38,0.000304,31]
[343967669,1733160647619,-153.38,0.000304,31]
[343967670,1733160647628,-3807.64,0.0003041,7]
[343967671,1733160647645,-500.0,0.0003041,7]
[343967672,1733160647656,-1304.11,0.0003041,7]
[343967673,1733160647666,-500.0,0.0003041,7]
[343967674,1733160647675,-500.0,0.0003041,7]
[343967675,1733160647685,-500.0,0.0003041,7]
[343967676,1733160647697,-500.0,0.0003041,7]
[343967677,1733160647707,-2002.79,0.0003041,7]
[343967678,1733160647719,-500.0,0.0003041,7]
[343967679,1733160647729,-500.0,0.0003041,7]
[343967680,1733160647739,-1221.0809417,0.00030425,2]
[343967681,1733160647748,-356.0518868,0.00030466,30]
[343967682,1733160647758,-306.0,0.00030466,30]
[343967683,1733160647767,-151.0,0.0003047,7]
[343967684,1733160647780,-151.0,0.0003047,7]
[343967685,1733160647790,-151.0,0.0003047,7]
[343967686,1733160647800,-151.0,0.0003047,7]
[343967687,1733160647810,-151.0,0.0003047,7]
[343967688,1733160647819,-151.0,0.0003047,7]
[343967689,1733160647829,-151.0,0.0003047,7]
[343967690,1733160647839,-151.0,0.0003047,7]
[343967691,1733160647849,-151.0,0.0003047,7]
[343967692,1733160647859,-151.0,0.0003047,7]
[343967693,1733160647869,-151.0,0.0003047,7]
[343967694,1733160647878,-151.0,0.0003047,7]
[343967695,1733160647888,-218.842112,0.0003047,7]
[343967696,1733160647897,-151.0,0.0003047,7]
[343967697,1733160647906,-151.0,0.0003047,7]
[343967698,1733160647917,-151.0,0.0003047,7]
[343967699,1733160647927,-151.0,0.0003047,7]
[343967700,1733160647936,-151.0,0.0003047,7]
[343967701,1733160647945,-151.0,0.0003047,7]
[343967702,1733160647955,-151.0,0.0003047,7]
[343967703,1733160647966,-151.0,0.0003047,7]
[343967704,1733160647977,-151.0,0.0003047,7]
[343967705,1733160647987,-151.0,0.0003047,7]
[343967706,1733160647998,-176.018611,0.0003047,7]
[343967707,1733160648009,-151.0,0.0003047,7]
[343967708,1733160648019,-151.0,0.0003047,7]
[343967709,1733160648032,-151.0,0.0003047,7]
[343967710,1733160648042,-151.0,0.0003047,7]
[343967711,1733160648052,-151.0,0.0003047,7]
[343967712,1733160648062,-151.0,0.0003047,7]
[343967713,1733160648073,-151.0,0.0003047,7]
[343967714,1733160648083,-151.0,0.0003047,7]
[343967715,1733160648093,-151.0,0.0003047,7]
[343967716,1733160648103,-151.0,0.0003047,7]
[343967717,1733160648113,-151.0,0.0003047,7]
[343967718,1733160648123,-151.0,0.0003047,7]
[343967719,1733160648132,-151.0,0.0003047,7]
[343967720,1733160648142,-151.0,0.0003047,7]
[343967721,1733160648151,-151.0,0.0003047,7]
[343967722,1733160648160,-151.0,0.0003047,7]
[343967723,1733160648170,-151.0,0.0003047,7]
[343967724,1733160648181,-151.0,0.0003047,7]
[343967725,1733160648190,-151.0,0.0003047,7]
[343967726,1733160648199,-190.4816,0.0003047,7]
[343967727,1733160648209,-151.0,0.0003047,7]
[343967728,1733160648218,-151.0,0.0003047,7]
[343967729,1733160648227,-151.0,0.0003047,7]
[343967730,1733160648237,-151.975445,0.0003047,7]
[343967731,1733160648246,-151.0,0.0003047,7]
[343967732,1733160648255,-151.0,0.0003047,7]
[343967733,1733160648265,-151.0,0.0003047,7]
[343967734,1733160648278,-151.0,0.0003047,7]
[343967735,1733160648288,-151.0,0.0003047,7]
[343967736,1733160648298,-151.0,0.0003047,7]
[343967737,1733160648308,-151.0,0.0003047,7]
[343967738,1733160648318,-152.707552,0.0003047,7]
[343967739,1733160648327,-151.0,0.0003047,7]
[343967740,1733160648337,-151.0,0.0003047,7]
[343967741,1733160648346,-151.0,0.0003047,7]
[343967742,1733160648355,-151.0,0.0003047,7]
[343967743,1733160648365,-151.0,0.0003047,7]
[343967744,1733160648374,-151.0,0.0003047,7]
[343967745,1733160648383,-151.0,0.0003047,7]
[343967746,1733160648393,-151.0,0.0003047,7]
[343967747,1733160648402,-151.0,0.0003047,7]
[343967748,1733160648412,-151.0,0.0003047,7]
[343967749,1733160648421,-233.54716,0.0003047,7]
[343967750,1733160648430,-151.0,0.0003047,7]
[343967751,1733160648440,-151.0,0.0003047,7]
[343967752,1733160648449,-151.0,0.0003047,7]
[343967753,1733160648459,-151.0,0.0003047,7]
[343967754,1733160648470,-151.0,0.0003047,7]
[343967755,1733160648480,-151.0,0.0003047,7]
[343967756,1733160648490,-151.0,0.0003047,7]
[343967757,1733160648500,-151.0,0.0003047,7]
[343967758,1733160648510,-151.0,0.0003047,7]
[343967759,1733160648521,-151.0,0.0003047,7]
[343967760,1733160648534,-151.0,0.0003047,7]
[343967761,1733160648545,-151.0,0.0003047,7]
[343967762,1733160648555,-170.124265,0.0003047,7]
[343967763,1733160648565,-151.0,0.00030471,7]
[343967764,1733160648577,-156.165391,0.00030471,7]
[343967765,1733160648588,-157.033705,0.00030471,7]
[343967766,1733160648599,-157.033705,0.00030471,7]
[343967767,1733160648610,-157.033705,0.00030471,7]
[343967768,1733160648620,-157.033705,0.00030471,7]
[343967769,1733160648631,-157.033705,0.00030471,7]
[343967770,1733160648643,-157.033705,0.00030471,7]
[343967771,1733160648654,-157.033705,0.00030471,7]
[343967772,1733160648664,-157.033705,0.00030471,7]
[343967773,1733160648674,-157.033705,0.00030471,7]
[343967774,1733160648685,-157.033705,0.00030471,7]
[343967775,1733160648695,-157.033705,0.00030471,7]
[343967776,1733160648705,-157.033705,0.00030471,7]
[343967777,1733160648715,-157.033705,0.00030471,7]
[343967778,1733160648726,-157.033705,0.00030471,7]
[343967779,1733160648739,-157.033705,0.00030471,7]
[343967780,1733160648749,-157.033705,0.00030471,7]
[343967781,1733160648759,-157.033705,0.00030471,7]
[343967782,1733160648770,-157.033705,0.00030471,7]
[343967783,1733160648782,-157.033705,0.00030471,7]
[343967784,1733160648792,-157.033703,0.00030471,7]
[343967785,1733160648801,-235.332972,0.00030471,7]
[343967786,1733160648811,-235.332972,0.00030471,7]
[343967787,1733160648821,-235.332972,0.00030471,7]
[343967788,1733160648832,-235.332972,0.00030471,7]
[343967789,1733160648841,-235.332972,0.00030471,7]
[343967790,1733160648851,-235.332972,0.00030471,7]
[343967791,1733160648861,-235.332972,0.00030471,7]
[343967792,1733160648871,-235.332972,0.00030471,7]
[343967793,1733160648881,-235.332972,0.00030471,7]
[343967794,1733160648891,-235.332972,0.00030471,7]
[343967795,1733160648901,-235.332972,0.00030471,7]
[343967796,1733160648911,-235.332972,0.00030471,7]
[343967797,1733160648921,-235.332972,0.00030471,7]
[343967798,1733160648931,-235.332972,0.00030471,7]
[343967799,1733160648941,-235.332972,0.00030471,7]
[343967800,1733160648951,-235.332972,0.00030471,7]
[343967801,1733160648960,-235.332972,0.00030471,7]
[343967802,1733160648971,-235.332972,0.00030471,7]
[343967803,1733160648980,-235.332972,0.00030471,7]
[343967804,1733160648991,-235.332981,0.00030471,7]
[343967805,1733160649002,-500.0,0.00030473,5]
[343967806,1733160649013,-186.33697864,0.00030473,5]
[343967807,1733160649025,-500.95874668,0.00030473,5]
[343967808,1733160649036,-468.50992527,0.00030478,2]
[343967809,1733160649046,-501.55140692,0.00030479,11]
[343967810,1733160649057,-176.43297184,0.00030479,10]
[343967811,1733160649068,-150.17,0.00030479,10]
[343967812,1733160649078,-500.0,0.00030479,10]
[343967813,1733160649087,-150.17,0.00030479,10]
[343967814,1733160649097,-150.17,0.00030479,10]